fUSD/lending_fUSD_20260630
["ID","MTS","AMOUNT","RATE_DAILY","PERIOD"]
[426741013,1782774645000,-1982.8203,0.0001897,2]
[426741021,1782774645000,-300.0,0.00018999,2]
[426741030,1782774645000,-1982.8203,0.00019,2]
[426741019,1782774645000,-666.0,0.00018999,2]
[426741023,1782774645000,-281.61363265,0.00019,2]
[426741025,1782774645000,-250.069761,0.00019,2]
[426741024,1782774645000,-466538.37359283,0.00019,2]
[426741034,1782774645000,-3035.015411,0.00019,2]
[426741026,1782774645000,-250.069761,0.00019,2]
[426741032,1782774645000,-3035.015411,0.00019,2]
[426741029,1782774645000,-1982.8203,0.00019,2]
[426741033,1782774645000,-3035.015411,0.00019,2]
[426741031,1782774645000,-3035.015411,0.00019,2]
[426741027,1782774645000,-250.069761,0.00019,2]
[426741009,1782774645000,-152.0,0.0001891,2]
[426741028,1782774645000,-250.069761,0.00019,2]
[426741018,1782774645000,-300.0,0.00018999,2]
[426741007,1782774645000,-1982.8203,0.0001887,2]
[426740987,1782774645000,-505.0,0.00017468,4]
[426741008,1782774645000,-166.0554747,0.00018905,2]
[426741036,1782774645000,-500.0,0.00019,2]
[426740975,1782774645000,-1356.0,0.00015494,5]
[426740980,1782774645000,-500.0,0.00016438,2]
[426740977,1782774645000,-500.0,0.0001589,2]
[426740974,1782774645000,-362.4588,0.00015381,2]
[426740976,1782774645000,-505.0,0.00015823,2]
[426740983,1782774645000,-505.0,0.00016646,3]
[426740978,1782774645000,-560.0,0.000164,2]
[426740981,1782774645000,-500.0,0.00016438,2]
[426740985,1782774645000,-151.95595905,0.00017395,2]
[426740979,1782774645000,-736.0,0.00016408,2]
[426740982,1782774645000,-214.36457203,0.00016438,2]
[426740984,1782774645000,-634.62,0.00017059,2]
[426740986,1782774645000,-500.0,0.00017445,2]
[426740989,1782774645000,-281.33098633,0.00017632,10]
[426740990,1782774645000,-341.51534423,0.00017709,2]
[426740996,1782774645000,-505.0,0.00018291,4]
[426740988,1782774645000,-341.44268877,0.00017525,2]
[426740995,1782774645000,-162.63,0.00018,2]
[426740991,1782774645000,-1252.0,0.00017817,2]
[426740994,1782774645000,-331.64225527,0.00018,2]
[426740993,1782774645000,-192.95,0.00017982,2]
[426740992,1782774645000,-500.0,0.00017918,2]
[426740997,1782774645000,-350.0,0.00018418,2]
[426741001,1782774645000,-350.0,0.00018619,2]
[426741002,1782774645000,-350.0,0.00018651,2]
[426740999,1782774645000,-350.0,0.00018499,2]
[426740998,1782774645000,-281.33098633,0.00018454,10]
[426741000,1782774645000,-350.0,0.00018516,2]
[426741004,1782774645000,-634.62,0.00018765,2]
[426741046,1782774645000,-500.0,0.00019,2]
[426741089,1782774645000,-500.0,0.00019,2]
[426741040,1782774645000,-500.0,0.00019,2]
[426741071,1782774645000,-500.0,0.00019,2]
[426741064,1782774645000,-500.0,0.00019,2]
[426741072,1782774645000,-500.0,0.00019,2]
[426741069,1782774645000,-500.0,0.00019,2]
[426741078,1782774645000,-500.0,0.00019,2]
[426741082,1782774645000,-192.710337,0.00019,2]
[426741076,1782774645000,-500.0,0.00019,2]
[426741084,1782774645000,-500.0,0.00019,2]
[426741079,1782774645000,-500.0,0.00019,2]
[426741083,1782774645000,-500.0,0.00019,2]
[426741086,1782774645000,-500.0,0.00019,2]
[426741081,1782774645000,-500.0,0.00019,2]
[426741080,1782774645000,-500.0,0.00019,2]
[426741067,1782774645000,-192.710337,0.00019,2]
[426741088,1782774645000,-500.0,0.00019,2]
[426741077,1782774645000,-500.0,0.00019,2]
[426741085,1782774645000,-500.0,0.00019,2]
[426741091,1782774645000,-506.84520691,0.000191,2]
[426741090,1782774645000,-366.27966924,0.0001901,7]
[426741092,1782774645000,-335.96757487,0.000191,2]
[426741093,1782774645000,-192.08612594,0.000191,2]
[426741095,1782774645000,-505.0,0.00019114,5]
[426741047,1782774645000,-500.0,0.00019,2]
[426741096,1782774645000,-500.0,0.00019178,2]
[426741094,1782774645000,-4021.18252922,0.000191,2]
[426741098,1782774645000,-173.81676022,0.00019178,2]
[426741097,1782774645000,-500.0,0.00019178,2]
[426741100,1782774645000,-185.963335,0.00019178,2]
[426741087,1782774645000,-500.0,0.00019,2]
[426741070,1782774645000,-500.0,0.00019,2]
[426741099,1782774645000,-185.963335,0.00019178,2]
[426741068,1782774645000,-500.0,0.00019,2]
[426741062,1782774645000,-500.0,0.00019,2]
[426741038,1782774645000,-500.0,0.00019,2]
[426741037,1782774645000,-500.0,0.00019,2]
[426741041,1782774645000,-500.0,0.00019,2]
[426741039,1782774645000,-500.0,0.00019,2]
[426741045,1782774645000,-500.0,0.00019,2]
[426741043,1782774645000,-500.0,0.00019,2]
[426741044,1782774645000,-500.0,0.00019,2]
[426741042,1782774645000,-500.0,0.00019,2]
[426741055,1782774645000,-500.0,0.00019,2]
[426741052,1782774645000,-500.0,0.00019,2]
[426741049,1782774645000,-500.0,0.00019,2]
[426741054,1782774645000,-500.0,0.00019,2]
[426741057,1782774645000,-500.0,0.00019,2]
[426741035,1782774645000,-279.79824217,0.00019,2]
[426741048,1782774645000,-500.0,0.00019,2]
[426741051,1782774645000,-500.0,0.00019,2]
[426741066,1782774645000,-500.0,0.00019,2]
[426741075,1782774645000,-500.0,0.00019,2]
[426741063,1782774645000,-500.0,0.00019,2]
[426741073,1782774645000,-500.0,0.00019,2]
[426741060,1782774645000,-500.0,0.00019,2]
[426741074,1782774645000,-192.710337,0.00019,2]
[426741059,1782774645000,-500.0,0.00019,2]
[426741053,1782774645000,-500.0,0.00019,2]
[426741061,1782774645000,-192.710337,0.00019,2]
[426741056,1782774645000,-500.0,0.00019,2]
[426741065,1782774645000,-500.0,0.00019,2]
[426741058,1782774645000,-500.0,0.00019,2]
[426741050,1782774645000,-500.0,0.00019,2]
[426741133,1782774646000,-26064.27256557,0.0002,2]
[426741131,1782774646000,-1562.22152476,0.0002,2]
[426741132,1782774646000,-179.76215624,0.0002,2]
[426741130,1782774646000,-2334.2784488,0.0002,2]
[426741137,1782774646000,-26923.0488516,0.0002,2]
[426741136,1782774646000,-3950.0,0.0002,2]
[426741134,1782774646000,-403.21083539,0.0002,2]
[426741140,1782774646000,-541.43445294,0.0002,2]
[426741139,1782774646000,-3007.09826212,0.0002,7]
[426741141,1782774646000,-200.0,0.0002,2]
[426741138,1782774646000,-1318.86632219,0.0002,2]
[426741147,1782774646000,-18151.27854215,0.0002,2]
[426741150,1782774646000,-157.0,0.0002,2]
[426741149,1782774646000,-184.01588541,0.0002,2]
[426741146,1782774646000,-13105.43702097,0.0002,2]
[426741142,1782774646000,-38041.25559767,0.0002,2]
[426741144,1782774646000,-52619.9708974,0.0002,2]
[426741143,1782774646000,-1064.59998034,0.0002,2]
[426741145,1782774646000,-939.62517223,0.0002,2]
[426741155,1782774646000,-252.0,0.0002,2]
[426741159,1782774646000,-869.0,0.0002,2]
[426741128,1782774646000,-300.0,0.00019999,2]
[426741157,1782774646000,-152.0,0.0002,2]
[426741148,1782774646000,-5609.65719088,0.0002,2]
[426741127,1782774646000,-300.0,0.00019999,2]
[426741104,1782774646000,-459.66118405,0.00019186,2]
[426741124,1782774646000,-10341.5689,0.000199,2]
[426741154,1782774646000,-201.0,0.0002,2]
[426741102,1782774646000,-185.963335,0.00019178,2]
[426741101,1782774646000,-185.963335,0.00019178,2]
[426741103,1782774646000,-598.84,0.00019182,2]
[426741107,1782774646000,-335.96757487,0.000193,2]
[426741105,1782774646000,-174.39,0.00019199,2]
[426741106,1782774646000,-506.84520691,0.000193,2]
[426741111,1782774646000,-171.2,0.00019424,2]
[426741113,1782774646000,-506.84520691,0.000195,2]
[426741108,1782774646000,-192.08612594,0.000193,2]
[426741109,1782774646000,-4021.18252922,0.000193,2]
[426741129,1782774646000,-300.0,0.00019999,2]
[426741110,1782774646000,-1096.0,0.00019354,2]
[426741115,1782774646000,-4021.18252922,0.000195,2]
[426741126,1782774646000,-300.0,0.00019999,2]
[426741118,1782774646000,-4021.18252922,0.000197,2]
[426741116,1782774646000,-506.84520691,0.000197,2]
[426741114,1782774646000,-335.96757487,0.000195,2]
[426741117,1782774646000,-335.96757487,0.000197,2]
[426741125,1782774646000,-505.0,0.00019937,6]
[426741121,1782774646000,-335.96757487,0.000199,2]
[426741120,1782774646000,-506.84520691,0.000199,2]
[426741122,1782774646000,-4021.18252922,0.000199,2]
[426741119,1782774646000,-350.0,0.00019776,2]
[426741112,1782774646000,-350.0,0.00019496,2]
[426741153,1782774646000,-536.0,0.0002,2]
[426741207,1782774646000,-157.0,0.00021,2]
[426741151,1782774646000,-238.0,0.0002,2]
[426741184,1782774646000,-4021.18252922,0.000209,2]
[426741186,1782774646000,-151.0,0.00020905,2]
[426741192,1782774646000,-151.0,0.00020905,2]
[426741194,1782774646000,-151.0,0.00020905,2]
[426741193,1782774646000,-151.0,0.00020905,2]
[426741189,1782774646000,-151.0,0.00020905,2]
[426741191,1782774646000,-151.0,0.00020905,2]
[426741188,1782774646000,-151.0,0.00020905,2]
[426741199,1782774646000,-151.0,0.00020905,2]
[426741196,1782774646000,-151.0,0.00020905,2]
[426741198,1782774646000,-151.0,0.00020905,2]
[426741177,1782774646000,-357.54746057,0.00020659,2]
[426741197,1782774646000,-151.0,0.00020905,2]
[426741200,1782774646000,-151.0,0.00020905,2]
[426741209,1782774646000,-210.0,0.00021,2]
[426741203,1782774646000,-151.0,0.00020905,2]
[426741204,1782774646000,-151.0,0.00020905,2]
[426741202,1782774646000,-151.0,0.00020905,2]
[426741201,1782774646000,-151.0,0.00020905,2]
[426741208,1782774646000,-238.0,0.00021,2]
[426741205,1782774646000,-151.0,0.00020905,2]
[426741206,1782774646000,-190.18706304,0.00021,2]
[426741210,1782774646000,-536.0,0.00021,2]
[426741156,1782774646000,-309.0,0.0002,2]
[426741195,1782774646000,-151.0,0.00020905,2]
[426741182,1782774646000,-350.0,0.00020851,2]
[426741190,1782774646000,-151.0,0.00020905,2]
[426741178,1782774646000,-150.0,0.00020659,2]
[426741183,1782774646000,-350.0,0.00020856,2]
[426741152,1782774646000,-210.0,0.0002,2]
[426741162,1782774646000,-560.0,0.0002,2]
[426741160,1782774646000,-204.0,0.0002,2]
[426741158,1782774646000,-171.0,0.0002,2]
[426741172,1782774646000,-150.0,0.00020547,2]
[426741164,1782774646000,-4021.18252922,0.000201,2]
[426741169,1782774646000,-4021.18252922,0.000205,2]
[426741165,1782774646000,-350.0,0.00020144,2]
[426741173,1782774646000,-151.0,0.00020548,2]
[426741163,1782774646000,-166.66,0.00020007,2]
[426741170,1782774646000,-162.63,0.000205,2]
[426741161,1782774646000,-232.0,0.0002,2]
[426741181,1782774646000,-505.0,0.00020759,7]
[426741175,1782774646000,-500.0,0.00020659,2]
[426741179,1782774646000,-609.69328379,0.000207,2]
[426741176,1782774646000,-500.0,0.00020659,2]
[426741185,1782774646000,-500.0,0.00020905,2]
[426741180,1782774646000,-4021.18252922,0.000207,2]
[426741187,1782774646000,-151.0,0.00020905,2]
[426741171,1782774646000,-156.45618947,0.0002052,2]
[426741167,1782774646000,-4021.18252922,0.000203,2]
[426741174,1782774646000,-598.6,0.00020548,2]
[426741168,1782774646000,-634.62,0.00020471,2]
[426741166,1782774646000,-501.96465776,0.00020246,2]
[426741265,1782774647000,-190.18706304,0.000216,2]
[426741273,1782774647000,-150.0,0.00021918,2]
[426741274,1782774647000,-5000.0,0.00021918,2]
[426741277,1782774647000,-300.0,0.00021963,2]
[426741270,1782774647000,-1707.0,0.00021675,5]
[426741255,1782774647000,-151.0,0.000215,2]
[426741261,1782774647000,-200.0,0.00021547,2]
[426741259,1782774647000,-299.453797,0.000215,2]
[426741263,1782774647000,-505.0,0.00021582,7]
[426741275,1782774647000,-225.0,0.00021926,2]
[426741267,1782774647000,-151.0,0.00021672,2]
[426741257,1782774647000,-151.0,0.000215,2]
[426741281,1782774647000,-151.0,0.00021964,15]
[426741280,1782774647000,-158.175411,0.00021964,2]
[426741279,1782774647000,-300.0,0.00021963,2]
[426741278,1782774647000,-300.0,0.00021963,2]
[426741276,1782774647000,-206823.007297,0.00021953,2]
[426741282,1782774647000,-151.0,0.00021964,15]
[426741294,1782774647000,-206.895698,0.00021964,2]
[426741285,1782774647000,-151.0,0.00021964,2]
[426741284,1782774647000,-218.23034,0.00021964,15]
[426741283,1782774647000,-151.0,0.00021964,15]
[426741291,1782774647000,-206.895698,0.00021964,2]
[426741289,1782774647000,-170.143497,0.00021964,2]
[426741288,1782774647000,-170.143497,0.00021964,2]
[426741272,1782774647000,-190.18706304,0.000219,2]
[426741253,1782774647000,-1875.057436,0.000215,2]
[426741213,1782774647000,-309.0,0.00021,2]
[426741249,1782774647000,-1875.057436,0.000215,2]
[426741211,1782774647000,-201.0,0.00021,2]
[426741212,1782774647000,-252.0,0.00021,2]
[426741286,1782774647000,-151.0,0.00021964,2]
[426741214,1782774647000,-152.0,0.00021,2]
[426741216,1782774647000,-869.0,0.00021,2]
[426741217,1782774647000,-204.0,0.00021,2]
[426741215,1782774647000,-171.0,0.00021,2]
[426741221,1782774647000,-225.0,0.00021241,2]
[426741219,1782774647000,-207.5205915,0.00021074,2]
[426741220,1782774647000,-190.18706304,0.000212,2]
[426741223,1782774647000,-248.193351,0.00021241,2]
[426741226,1782774647000,-320.0,0.00021241,2]
[426741251,1782774647000,-1875.057436,0.000215,2]
[426741218,1782774647000,-232.0,0.00021,2]
[426741222,1782774647000,-278.0,0.00021241,2]
[426741241,1782774647000,-300.0,0.00021499,2]
[426741230,1782774647000,-4884.5594202,0.00021273,2]
[426741242,1782774647000,-58701.00305803,0.000215,2]
[426741240,1782774647000,-300.0,0.00021499,2]
[426741239,1782774647000,-300.0,0.00021499,2]
[426741232,1782774647000,-459.66118405,0.00021329,2]
[426741235,1782774647000,-190.18706304,0.000214,2]
[426741244,1782774647000,-226.58397681,0.000215,2]
[426741237,1782774647000,-518.5,0.00021453,2]
[426741238,1782774647000,-331.37629794,0.00021499,2]
[426741247,1782774647000,-1875.057436,0.000215,2]
[426741228,1782774647000,-304.522938,0.00021251,2]
[426741292,1782774647000,-170.143497,0.00021964,2]
[426741287,1782774647000,-151.0,0.00021964,2]
[426741293,1782774647000,-206.895698,0.00021964,2]
[426741329,1782774647000,-238.0,0.00023,2]
[426741328,1782774647000,-157.0,0.00023,2]
[426741325,1782774647000,-479.930466,0.000225,2]
[426741327,1782774647000,-534.37131346,0.0002271,2]
[426741320,1782774647000,-2031.29,0.00022466,2]
[426741326,1782774647000,-334.7249507,0.00022549,2]
[426741334,1782774647000,-309.0,0.00023,2]
[426741331,1782774647000,-536.0,0.00023,2]
[426741333,1782774647000,-252.0,0.00023,2]
[426741332,1782774647000,-201.0,0.00023,2]
[426741335,1782774647000,-152.0,0.00023,2]
[426741340,1782774647000,-1700.0,0.00023008,5]
[426741324,1782774647000,-36245.82527023,0.000225,2]
[426741339,1782774647000,-232.0,0.00023,2]
[426741336,1782774647000,-171.0,0.00023,2]
[426741337,1782774647000,-869.0,0.00023,2]
[426741342,1782774647000,-2000.0,0.000231,2]
[426741347,1782774647000,-150.0,0.00023288,2]
[426741345,1782774647000,-150.0,0.00023288,2]
[426741346,1782774647000,-150.0,0.00023288,2]
[426741349,1782774647000,-150.0,0.00023288,2]
[426741343,1782774647000,-501.21584052,0.000232,2]
[426741348,1782774647000,-150.0,0.00023288,2]
[426741344,1782774647000,-505.0,0.00023228,9]
[426741350,1782774647000,-150.0,0.00023288,2]
[426741290,1782774647000,-170.143497,0.00021964,2]
[426741341,1782774647000,-150.0,0.00023014,2]
[426741330,1782774647000,-210.0,0.00023,2]
[426741338,1782774647000,-204.0,0.00023,2]
[426741321,1782774647000,-259.45,0.00022466,2]
[426741322,1782774647000,-1288.72,0.00022466,2]
[426741302,1782774647000,-210.0,0.00022,2]
[426741298,1782774647000,-2216.06705773,0.00022,2]
[426741297,1782774647000,-395414.2405703,0.00021964,2]
[426741300,1782774647000,-157.0,0.00022,2]
[426741301,1782774647000,-238.0,0.00022,2]
[426741299,1782774647000,-300.0,0.00022,2]
[426741296,1782774647000,-52030.1630378,0.00021964,2]
[426741304,1782774647000,-536.0,0.00022,2]
[426741303,1782774647000,-162.63,0.00022,7]
[426741305,1782774647000,-201.0,0.00022,2]
[426741306,1782774647000,-252.0,0.00022,2]
[426741307,1782774647000,-309.0,0.00022,2]
[426741295,1782774647000,-206.895698,0.00021964,2]
[426741323,1782774647000,-406.84,0.00022466,2]
[426741319,1782774647000,-1666.23,0.00022466,2]
[426741313,1782774647000,-521.16,0.00022,2]
[426741314,1782774647000,-537.6845,0.00022001,2]
[426741316,1782774647000,-2000.0,0.000223,2]
[426741308,1782774647000,-152.0,0.00022,2]
[426741312,1782774647000,-232.0,0.00022,2]
[426741311,1782774647000,-204.0,0.00022,2]
[426741309,1782774647000,-171.0,0.00022,2]
[426741310,1782774647000,-869.0,0.00022,2]
[426741315,1782774647000,-245.25568359,0.0002211,2]
[426741318,1782774647000,-505.0,0.00022405,8]
[426741317,1782774647000,-2000.0,0.000223,2]
[426741392,1782774648000,-5265.54863112,0.00023986,2]
[426741394,1782774648000,-1262.74696786,0.00024,2]
[426741390,1782774648000,-500.0,0.00023837,2]
[426741384,1782774648000,-160.97623276,0.00023627,2]
[426741383,1782774648000,-176.128605,0.0002361,2]
[426741385,1782774648000,-187.81331854,0.00023669,2]
[426741387,1782774648000,-182.62334235,0.00023669,2]
[426741389,1782774648000,-3277.62799993,0.00023692,2]
[426741379,1782774648000,-165.04198848,0.00023572,2]
[426741380,1782774648000,-188.25938531,0.00023572,2]
[426741401,1782774648000,-252.0,0.00024,2]
[426741382,1782774648000,-185.67674885,0.00023582,2]
[426741388,1782774648000,-152.93317974,0.00023669,2]
[426741399,1782774648000,-536.0,0.00024,2]
[426741396,1782774648000,-162.0,0.00024,2]
[426741402,1782774648000,-309.0,0.00024,2]
[426741393,1782774648000,-3600.0,0.00024,2]
[426741398,1782774648000,-210.0,0.00024,2]
[426741395,1782774648000,-11216.173876,0.00024,2]
[426741400,1782774648000,-201.0,0.00024,2]
[426741391,1782774648000,-3133.27393484,0.00023929,2]
[426741415,1782774648000,-151.0,0.0002441,2]
[426741404,1782774648000,-171.0,0.00024,2]
[426741407,1782774648000,-232.0,0.00024,2]
[426741408,1782774648000,-505.0,0.00024051,10]
[426741411,1782774648000,-162.63,0.000242,7]
[426741403,1782774648000,-152.0,0.00024,2]
[426741397,1782774648000,-238.0,0.00024,2]
[426741381,1782774648000,-176.93593395,0.00023582,2]
[426741354,1782774648000,-157.48811059,0.00023288,2]
[426741376,1782774648000,-197.22258442,0.00023572,2]
[426741414,1782774648000,-2843.82443292,0.00024355,2]
[426741353,1782774648000,-150.0,0.00023288,2]
[426741352,1782774648000,-150.0,0.00023288,2]
[426741351,1782774648000,-150.0,0.00023288,2]
[426741366,1782774648000,-161.99419658,0.00023567,2]
[426741356,1782774648000,-170.35589188,0.00023567,2]
[426741357,1782774648000,-180.39720908,0.00023567,2]
[426741355,1782774648000,-459.66118405,0.00023471,2]
[426741358,1782774648000,-176.74478931,0.00023567,2]
[426741363,1782774648000,-189.18085994,0.00023567,2]
[426741361,1782774648000,-155.80312789,0.00023567,2]
[426741360,1782774648000,-180.32901812,0.00023567,2]
[426741364,1782774648000,-185.14235001,0.00023567,2]
[426741359,1782774648000,-203.08260919,0.00023567,2]
[426741362,1782774648000,-174.40784466,0.00023567,2]
[426741365,1782774648000,-161.73271233,0.00023567,2]
[426741367,1782774648000,-191.90104982,0.00023567,2]
[426741368,1782774648000,-218.45150209,0.0002357,2]
[426741378,1782774648000,-182.68334485,0.00023572,2]
[426741370,1782774648000,-161.70377864,0.0002357,2]
[426741373,1782774648000,-177.85626479,0.00023572,2]
[426741372,1782774648000,-192.88602753,0.00023572,2]
[426741371,1782774648000,-159.29813954,0.0002357,2]
[426741369,1782774648000,-203.81141378,0.0002357,2]
[426741375,1782774648000,-161.79286925,0.00023572,2]
[426741377,1782774648000,-202.26807697,0.00023572,2]
[426741374,1782774648000,-150.61759924,0.00023572,2]
[426741386,1782774648000,-176.45424766,0.00023669,2]
[426741405,1782774648000,-869.0,0.00024,2]
[426741406,1782774648000,-204.0,0.00024,2]
[426741410,1782774648000,-150.0,0.00024164,2]
[426741442,1782774648000,-390.280005,0.00024658,2]
[426741449,1782774648000,-360.65803624,0.00024822,2]
[426741444,1782774648000,-232.16,0.00024658,2]
[426741450,1782774648000,-406.16521837,0.00024822,2]
[426741441,1782774648000,-390.280005,0.00024658,2]
[426741451,1782774648000,-311.60625578,0.00024822,2]
[426741447,1782774648000,-360.79441816,0.00024822,2]
[426741445,1782774648000,-479.930467,0.0002475,2]
[426741458,1782774648000,-407.62282757,0.00024825,2]
[426741456,1782774648000,-383.80209964,0.00024822,2]
[426741454,1782774648000,-323.46542466,0.00024822,2]
[426741465,1782774648000,-323.5857385,0.00024827,2]
[426741457,1782774648000,-436.90300419,0.00024825,2]
[426741443,1782774648000,-181.88,0.00024658,2]
[426741460,1782774648000,-318.59627909,0.00024825,2]
[426741462,1782774648000,-355.71252957,0.00024827,2]
[426741455,1782774648000,-323.98839317,0.00024822,2]
[426741463,1782774648000,-301.23519848,0.00024827,2]
[426741453,1782774648000,-370.28470002,0.00024822,2]
[426741464,1782774648000,-153.23427527,0.00024827,2]
[426741461,1782774648000,-385.77205507,0.00024827,2]
[426741467,1782774648000,-404.53615395,0.00024827,2]
[426741470,1782774648000,-376.51877063,0.00024827,2]
[426741469,1782774648000,-330.08397697,0.00024827,2]
[426741468,1782774648000,-365.36668969,0.00024827,2]
[426741466,1782774648000,-394.44516884,0.00024827,2]
[426741471,1782774648000,-353.8718679,0.00024837,2]
[426741409,1782774648000,-3133.27393484,0.0002415,2]
[426741459,1782774648000,-323.40755728,0.00024825,2]
[426741448,1782774648000,-176.7845279,0.00024822,2]
[426741472,1782774648000,-152.53067988,0.00024838,2]
[426741446,1782774648000,-178.12885866,0.00024822,2]
[426741413,1782774648000,-2843.82443292,0.00024286,2]
[426741412,1782774648000,-200.0,0.00024246,2]
[426741421,1782774648000,-151.0,0.0002441,2]
[426741473,1782774648000,-371.35349771,0.00024838,2]
[426741418,1782774648000,-151.0,0.0002441,2]
[426741420,1782774648000,-151.0,0.0002441,2]
[426741419,1782774648000,-151.0,0.0002441,2]
[426741422,1782774648000,-151.0,0.0002441,2]
[426741452,1782774648000,-348.81568932,0.00024822,2]
[426741427,1782774648000,-1281.426,0.00024612,2]
[426741423,1782774648000,-521.16,0.00024547,7]
[426741426,1782774648000,-294.0,0.00024612,2]
[426741417,1782774648000,-151.0,0.0002441,2]
[426741424,1782774648000,-324.30939278,0.00024553,2]
[426741425,1782774648000,-3565.0,0.00024612,2]
[426741429,1782774648000,-3651.0,0.00024622,2]
[426741438,1782774648000,-151.0,0.00024658,2]
[426741416,1782774648000,-151.0,0.0002441,2]
[426741433,1782774648000,-151.0,0.00024658,2]
[426741428,1782774648000,-1234.592,0.0002462,2]
[426741436,1782774648000,-151.0,0.00024658,2]
[426741434,1782774648000,-151.0,0.00024658,2]
[426741435,1782774648000,-151.0,0.00024658,2]
[426741440,1782774648000,-390.280005,0.00024658,2]
[426741431,1782774648000,-1000.0,0.00024658,2]
[426741430,1782774648000,-6087.0,0.00024622,2]
[426741439,1782774648000,-390.280005,0.00024658,2]
[426741437,1782774648000,-151.0,0.00024658,2]
[426741432,1782774648000,-151.0,0.00024658,2]
[426741511,1782774649000,-201.0,0.00025,2]
[426741510,1782774649000,-549.0,0.00025,2]
[426741513,1782774649000,-312.83020111,0.00025,2]
[426741514,1782774649000,-155.0,0.00025,2]
[426741508,1782774649000,-28962.06939509,0.00025,2]
[426741515,1782774649000,-173.0,0.00025,2]
[426741509,1782774649000,-212.0,0.00025,2]
[426741507,1782774649000,-255.0,0.00025,2]
[426741506,1782774649000,-2142.0035089,0.00025,2]
[426741504,1782774649000,-78011.56510247,0.00025,60]
[426741512,1782774649000,-252.0,0.00025,2]
[426741516,1782774649000,-888.10058497,0.00025,2]
[426741528,1782774649000,-390.280005,0.00025,2]
[426741517,1782774649000,-217.59292995,0.00025,2]
[426741521,1782774649000,-185.963335,0.00025,2]
[426741519,1782774649000,-233.0,0.00025,2]
[426741520,1782774649000,-151.00001,0.00025,2]
[426741522,1782774649000,-185.963335,0.00025,2]
[426741524,1782774649000,-185.963335,0.00025,2]
[426741527,1782774649000,-390.280005,0.00025,2]
[426741523,1782774649000,-185.963335,0.00025,2]
[426741526,1782774649000,-390.280005,0.00025,2]
[426741525,1782774649000,-390.280005,0.00025,2]
[426741529,1782774649000,-250.069761,0.00025,2]
[426741539,1782774649000,-192.710337,0.00025,2]
[426741505,1782774649000,-432107.20293562,0.00025,2]
[426741518,1782774649000,-216.58458871,0.00025,7]
[426741500,1782774649000,-151.0,0.00024997,7]
[426741487,1782774649000,-245.60393004,0.00024927,2]
[426741497,1782774649000,-1715.1,0.00024961,7]
[426741530,1782774649000,-250.069761,0.00025,2]
[426741476,1782774649000,-221.46026609,0.00024866,2]
[426741475,1782774649000,-159.72018684,0.00024866,2]
[426741478,1782774649000,-352.25721,0.00024866,2]
[426741477,1782774649000,-215.04522789,0.00024866,2]
[426741474,1782774649000,-2030.39121942,0.0002484,2]
[426741480,1782774649000,-505.0,0.00024873,10]
[426741479,1782774649000,-215.1063841,0.00024866,2]